fUST/lending_fUST_20260115
["ID","MTS","AMOUNT","RATE_DAILY","PERIOD"]
[401994654,1768449050884,-153.051658,0.00021918,2]
[401994655,1768449050894,-157.209828,0.00021918,2]
[401994656,1768449050903,-151.0,0.00021918,2]
[401994657,1768449050913,-153.063948,0.00021918,2]
[401994658,1768449050922,-1424.748661,0.00021918,2]
[401994659,1768449050932,-1424.748661,0.00021918,2]
[401994660,1768449050941,-1424.748661,0.00021918,2]
[401994661,1768449050950,-1424.748661,0.00021918,2]
[401994662,1768449050959,-1424.748661,0.00021918,2]
[401994663,1768449050968,-1424.748661,0.00021918,2]
[401994664,1768449050978,-1424.748661,0.00021918,2]
[401994665,1768449050987,-1424.748661,0.00021918,2]
[401994666,1768449050996,-1424.748661,0.00021918,2]
[401994667,1768449051005,-1424.748661,0.00021918,2]
[401994668,1768449051014,-1424.748661,0.00021918,2]
[401994669,1768449051023,-1424.748661,0.00021918,2]
[401994670,1768449051032,-1424.748661,0.00021918,2]
[401994671,1768449051041,-1424.748661,0.00021918,2]
[401994672,1768449051050,-1424.748661,0.00021918,2]
[401994673,1768449051059,-1424.748661,0.00021918,2]
[401994674,1768449051068,-1424.748661,0.00021918,2]
[401994675,1768449051077,-1424.748661,0.00021918,2]
[401994676,1768449051086,-1424.748661,0.00021918,2]
[401994677,1768449051095,-1424.748661,0.00021918,2]
[401994678,1768449051104,-151.0,0.00021918,2]
[401994679,1768449051113,-151.0,0.00021918,2]
[401994680,1768449051122,-151.0,0.00021918,2]
[401994681,1768449051132,-240.230287,0.00021918,2]
[401994682,1768449051141,-151.0,0.00021918,2]
[401994683,1768449051150,-151.0,0.00021918,2]
[401994684,1768449051159,-151.0,0.00021918,2]
[401994685,1768449051169,-151.0,0.00021918,2]
[401994686,1768449051180,-151.0,0.00021918,2]
[401994687,1768449051189,-151.0,0.00021918,2]
[401994688,1768449051198,-151.0,0.00021918,2]
[401994689,1768449051208,-151.0,0.00021918,2]
[401994690,1768449051218,-151.0,0.00021918,2]
[401994691,1768449051227,-151.0,0.00021918,2]
[401994692,1768449051237,-267.70555,0.00021918,2]
[401994693,1768449051249,-161.615592,0.00021918,2]
[401994694,1768449051258,-202.845237,0.00021918,2]
[401994695,1768449051268,-202.845237,0.00021918,2]
[401994696,1768449051277,-202.845237,0.00021918,2]
[401994697,1768449051286,-202.845237,0.00021918,2]
[401994698,1768449051296,-202.845237,0.00021918,2]
[401994699,1768449051305,-202.845237,0.00021918,2]
[401994700,1768449051314,-202.845237,0.00021918,2]
[401994701,1768449051323,-202.845237,0.00021918,2]
[401994702,1768449051333,-202.845237,0.00021918,2]
[401994703,1768449051342,-202.845237,0.00021918,2]
[401994704,1768449051353,-202.845237,0.00021918,2]
[401994705,1768449051362,-202.845237,0.00021918,2]
[401994706,1768449051371,-202.845237,0.00021918,2]
[401994707,1768449051380,-202.845237,0.00021918,2]
[401994708,1768449051390,-202.845237,0.00021918,2]
[401994709,1768449051399,-202.845237,0.00021918,2]
[401994710,1768449051409,-202.845237,0.00021918,2]
[401994711,1768449051418,-202.845237,0.00021918,2]
[401994712,1768449051427,-202.845237,0.00021918,2]
[401994713,1768449051436,-202.845235,0.00021918,2]
[401994714,1768449051446,-151.0,0.00021918,2]
[401994715,1768449051455,-151.0,0.00021918,2]
[401994716,1768449051464,-151.0,0.00021918,2]
[401994717,1768449051473,-151.0,0.00021918,2]
[401994718,1768449051482,-151.0,0.00021918,2]
[401994719,1768449051492,-151.0,0.00021918,2]
[401994720,1768449051501,-257.034056,0.00021918,2]
[401994721,1768449051511,-151.0,0.00021918,2]
[401994722,1768449051520,-151.0,0.00021918,2]
[401994723,1768449051529,-151.0,0.00021918,2]
[401994724,1768449051539,-151.0,0.00021918,2]
[401994725,1768449051548,-151.0,0.00021918,2]
[401994726,1768449051557,-151.000001,0.00021918,2]
[401994727,1768449051566,-154.245754,0.00021918,2]
[401994728,1768449051575,-154.245754,0.00021918,2]
[401994729,1768449051585,-154.245754,0.00021918,2]
[401994730,1768449051594,-154.245754,0.00021918,2]
[401994731,1768449051603,-154.245754,0.00021918,2]
[401994732,1768449051612,-154.245754,0.00021918,2]
[401994733,1768449051622,-154.245754,0.00021918,2]
[401994734,1768449051630,-154.245754,0.00021918,2]
[401994735,1768449051641,-154.245754,0.00021918,2]
[401994736,1768449051650,-154.245754,0.00021918,2]
[401994737,1768449051659,-154.245754,0.00021918,2]
[401994738,1768449051668,-154.245754,0.00021918,2]
[401994739,1768449051677,-154.245754,0.00021918,2]
[401994740,1768449051687,-154.245754,0.00021918,2]
[401994741,1768449051697,-154.245754,0.00021918,2]
[401994742,1768449051706,-154.245754,0.00021918,2]
[401994743,1768449051715,-154.245754,0.00021918,2]
[401994744,1768449051725,-154.245754,0.00021918,2]
[401994745,1768449051735,-154.245754,0.00021918,2]
[401994746,1768449051745,-154.245762,0.00021918,2]
[401994747,1768449051754,-151.0,0.00021918,2]
[401994748,1768449051764,-151.0,0.00021918,2]
[401994749,1768449051773,-152.385309,0.00021918,2]
[401994750,1768449051783,-151.0,0.00021918,2]
[401994751,1768449051792,-151.0,0.00021918,2]
[401994752,1768449051802,-151.0,0.00021918,2]
[401994753,1768449051811,-153.989207,0.00021918,2]
[401994754,1768449051820,-151.0,0.00021918,2]
[401994755,1768449051830,-151.0,0.00021918,2]
[401994756,1768449051840,-151.0,0.00021918,2]
[401994757,1768449051849,-151.0,0.00021918,2]
[401994758,1768449051859,-151.0,0.00021918,2]
[401994759,1768449052045,-151.0,0.00021918,2]
[401994760,1768449052055,-241.138234,0.00021918,2]
[401994761,1768449052064,-475.009948,0.00021918,2]
[401994762,1768449052074,-475.009948,0.00021918,2]
[401994763,1768449052082,-475.009948,0.00021918,2]
[401994764,1768449052091,-475.009948,0.00021918,2]
[401994765,1768449052100,-475.009948,0.00021918,2]
[401994766,1768449052110,-475.009948,0.00021918,2]
[401994767,1768449052119,-475.009948,0.00021918,2]
[401994768,1768449052128,-475.009948,0.00021918,2]
[401994769,1768449052138,-475.009948,0.00021918,2]
[401994770,1768449052147,-475.009948,0.00021918,2]
[401994771,1768449052157,-475.009948,0.00021918,2]
[401994772,1768449052168,-475.009948,0.00021918,2]
[401994773,1768449052179,-475.009948,0.00021918,2]
[401994774,1768449052189,-475.009948,0.00021918,2]
[401994775,1768449052198,-475.009948,0.00021918,2]
[401994776,1768449052207,-475.009948,0.00021918,2]
[401994777,1768449052218,-475.009948,0.00021918,2]
[401994778,1768449052227,-475.009948,0.00021918,2]
[401994779,1768449052237,-475.009948,0.00021918,2]
[401994780,1768449052248,-475.009938,0.00021918,2]
[401994781,1768449052257,-649.149683,0.00021918,2]
[401994782,1768449052267,-649.149683,0.00021918,2]
[401994783,1768449052276,-649.149683,0.00021918,2]
[401994784,1768449052286,-151.0,0.00021918,2]
[401994785,1768449052296,-151.0,0.00021918,2]
[401994786,1768449052305,-154.438873,0.00021918,2]
[401994787,1768449052314,-649.149683,0.00021918,2]
[401994788,1768449052324,-649.149683,0.00021918,2]
[401994789,1768449052333,-649.149683,0.00021918,2]
[401994790,1768449052343,-649.149683,0.00021918,2]
[401994791,1768449052352,-649.149683,0.00021918,2]
[401994792,1768449052361,-649.149683,0.00021918,2]
[401994793,1768449052371,-649.149683,0.00021918,2]
[401994794,1768449052380,-649.149683,0.00021918,2]
[401994795,1768449052389,-649.149683,0.00021918,2]
[401994796,1768449052399,-649.149683,0.00021918,2]
[401994797,1768449052409,-649.149683,0.00021918,2]
[401994798,1768449052418,-649.149683,0.00021918,2]
[401994799,1768449052428,-649.149683,0.00021918,2]
[401994800,1768449052437,-649.149683,0.00021918,2]
[401994801,1768449052447,-649.149683,0.00021918,2]
[401994802,1768449052456,-649.149683,0.00021918,2]
[401994803,1768449052465,-649.149675,0.00021918,2]
[401994804,1768449052475,-202.377532,0.00021918,2]
[401994805,1768449052485,-202.377532,0.00021918,2]
[401994806,1768449052495,-151.0,0.00021918,2]
[401994807,1768449052504,-202.377532,0.00021918,2]
[401994808,1768449052513,-171.590925,0.00021918,2]
[401994809,1768449052523,-202.377532,0.00021918,2]
[401994810,1768449052532,-202.377532,0.00021918,2]
[401994811,1768449052541,-202.377532,0.00021918,2]
[401994812,1768449052551,-202.377532,0.00021918,2]
[401994813,1768449052560,-202.377532,0.00021918,2]
[401994814,1768449052569,-202.377532,0.00021918,2]
[401994815,1768449052579,-202.377532,0.00021918,2]
[401994816,1768449052588,-202.377532,0.00021918,2]
[401994817,1768449052598,-202.377532,0.00021918,2]
[401994818,1768449052607,-202.377532,0.00021918,2]
[401994819,1768449052616,-202.377532,0.00021918,2]
[401994820,1768449052625,-202.377532,0.00021918,2]
[401994821,1768449052634,-202.377532,0.00021918,2]
[401994822,1768449052643,-202.377532,0.00021918,2]
[401994823,1768449052653,-202.377532,0.00021918,2]
[401994824,1768449052663,-202.377532,0.00021918,2]
[401994825,1768449052673,-202.377527,0.00021918,2]
[401994826,1768449052683,-153.36815,0.00021918,2]
[401994827,1768449052692,-151.112222,0.00021918,2]
[401994828,1768449052702,-151.0,0.00021918,2]
[401994829,1768449052711,-151.0,0.00021918,2]
[401994830,1768449052720,-151.0,0.00021918,2]
[401994831,1768449052729,-151.0,0.00021918,2]
[401994832,1768449052739,-151.0,0.00021918,2]
[401994833,1768449052748,-650.0,0.00021918,2]
[401994834,1768449052758,-8000.0,0.00021918,2]
[401994835,1768449052767,-2144.6,0.00022,7]
[401994836,1768449052777,-1309.0,0.00022,2]
[401994837,1768449052787,-272.93180544,0.00022,20]
[401994838,1768449052796,-155.151,0.00022007,2]
[401994839,1768449052806,-629.0,0.00022008,2]
[401994840,1768449052815,-1367.0,0.00022008,2]
[401994841,1768449052825,-4081.0,0.00022009,2]
[401994842,1768449052834,-2599.0,0.00022068,2]
[401994843,1768449052844,-187.78006525,0.00022144,2]
[401994844,1768449052854,-514.84070869,0.00022144,2]
[401994845,1768449052863,-2487.15318209,0.00022144,2]
[401994846,1768449052872,-195.28192685,0.00022144,2]
[401994847,1768449052882,-2599.0,0.00022147,2]
[401994848,1768449052891,-2599.0,0.0002218,2]
[401994849,1768449052901,-2599.0,0.00022234,2]
[401994850,1768449052911,-196.0,0.00022277,2]
[401994851,1768449052920,-3155.26568725,0.00022305,5]
[401994852,1768449052931,-2599.0,0.00022318,2]
[401994853,1768449052941,-196.0,0.00022324,2]
[401994854,1768449052951,-523.94574352,0.00022328,2]
[401994855,1768449052960,-347.89225561,0.00022329,7]
[401994856,1768449052970,-5765.31924314,0.00022344,2]
[401994857,1768449052979,-1000.0,0.000224,2]
[401994858,1768449052988,-1000.0,0.000224,2]
[401994859,1768449052997,-1000.0,0.000224,2]
[401994860,1768449053007,-1000.0,0.000224,2]
[401994861,1768449053016,-1000.0,0.000224,2]
[401994862,1768449053025,-1000.0,0.000224,2]
[401994863,1768449053035,-196.0,0.00022401,2]
[401994864,1768449053044,-196.0,0.0002241,2]
[401994865,1768449053054,-311.0,0.00022414,2]
[401994866,1768449053063,-2599.0,0.00022435,2]
[401994867,1768449053073,-300.0,0.00022466,2]
[401994868,1768449053083,-200.0,0.00022466,2]
[401994869,1768449053092,-750.0,0.00022466,2]
[401994870,1768449053102,-8500.0,0.00022466,2]
[401994871,1768449053112,-196.0,0.00022477,2]
[401994872,1768449053121,-1000.0,0.000225,2]
[401994873,1768449053134,-1000.0,0.000225,2]
[401994874,1768449053143,-1000.0,0.000225,2]
[401994875,1768449053153,-1000.0,0.000225,2]
[401994876,1768449053164,-4056.29,0.000225,14]
[401994877,1768449053178,-196.0,0.00022506,2]
[401994878,1768449053188,-3279.15230666,0.00022522,2]
[401994879,1768449053198,-311.0,0.00022527,2]
[401994880,1768449053207,-30331.9628031,0.00022545,2]
[401994881,1768449053218,-196.0,0.00022551,2]
[401994882,1768449053228,-2559.22537587,0.00022572,10]
[401994883,1768449053238,-26966.75,0.000226,2]
[401994884,1768449053249,-687.4,0.00022664,2]
[401994885,1768449053258,-258.98,0.0002267,2]
[401994886,1768449053268,-9263.05523206,0.00022678,2]
[401994887,1768449053278,-488.86991279,0.0002269,2]
[401994888,1768449053288,-194.72792766,0.00022692,2]
[401994889,1768449053298,-533.88981491,0.00022692,2]
[401994890,1768449053308,-1131.94580454,0.00022692,2]
[401994891,1768449053317,-196.0,0.00022695,2]
[401994892,1768449053328,-1000.0,0.00022719,10]
[401994893,1768449053337,-791.0,0.00022719,10]
[401994894,1768449053347,-160.0,0.00022736,3]
[401994895,1768449053356,-2553.5093059,0.00022738,2]
[401994896,1768449053366,-5000.0,0.00022768,2]
[401994897,1768449053376,-196.0,0.00022778,2]
[401994898,1768449053394,-4817.15586047,0.000228,6]
[401994899,1768449053410,-167.84,0.000228,7]
[401994900,1768449053427,-1058.66606622,0.000228,2]
[401994901,1768449053443,-2006823.93333706,0.000228,2]
[401994902,1768449053704,-500.0,0.000205,2]
[401994903,1768449053720,-500.0,0.000205,2]
[401994904,1768449053736,-820.735,0.000228,2]
[401994905,1768449053967,-5666.44270052,0.000228,2]
[401994909,1768449291010,500.0,0.00027397,120]
[401994920,1768449599967,500.0,0.00027397,120]
[401994934,1768449909083,500.0,0.00027397,120]
[401994938,1768450216485,500.0,0.00027397,120]
[401994939,1768450226455,-888.2784673,0.00011623,2]
[401994940,1768450226475,-584.0,0.00011623,2]
[401994957,1768450232526,-513.74,0.00012328,2]
[401994958,1768450232548,-300.0,0.00012328,2]
[401994961,1768450232570,-243.44530396,0.00012328,2]
[401994963,1768450232590,-475.64,0.00012329,2]
[401994966,1768450232611,-396.36,0.00012329,2]
[401994969,1768450232631,-330.3,0.00012329,2]
[401994972,1768450232650,-275.25,0.00012329,2]
[401994976,1768450232672,-229.38,0.00012329,2]
[401994979,1768450232692,-191.15,0.00012329,2]
[401994981,1768450232713,-159.29,0.00012329,2]
[401994984,1768450232733,-413.16622874,0.00012329,2]
[401994985,1768450232749,-383.30377126,0.00012329,2]
[401994987,1768450232758,-303.96875515,0.00012329,2]
[401994989,1768450232768,-315.04316084,0.0001273,2]
[401994991,1768450232779,-184.95683916,0.0001273,2]
[401994993,1768450232788,-500.0,0.0001273,2]
[401994995,1768450232797,-500.0,0.0001273,2]
[401994996,1768450232806,-500.0,0.0001273,2]
[401994997,1768450232815,-500.0,0.0001273,2]
[401994998,1768450232824,-190.07416802,0.0001273,2]
[401995000,1768450232833,-500.0,0.0001273,2]
[401995002,1768450232842,-453.821105,0.0001273,2]
[401995004,1768450232852,-500.0,0.0001273,2]
[401995006,1768450232861,-374.02737106,0.0001273,2]
[401995007,1768450232870,-500.0,0.0001273,2]
[401995009,1768450232879,-500.0,0.0001273,2]
[401995011,1768450232887,-500.0,0.0001273,2]
[401995012,1768450232896,-500.0,0.0001273,2]
[401995014,1768450232906,-500.0,0.0001273,2]
[401995015,1768450232915,-500.0,0.0001273,2]
[401995016,1768450232924,-500.0,0.0001273,2]
[401995017,1768450232933,-500.0,0.0001273,2]
[401995018,1768450232943,-500.0,0.0001273,2]
[401995019,1768450232952,-573.56720389,0.0001273,2]
[401995020,1768450232961,-500.0,0.0001273,2]
[401995021,1768450232970,-500.0,0.0001273,2]
[401995022,1768450232979,-500.0,0.0001273,2]
[401995023,1768450232988,-566.2557796,0.0001273,2]
[401995024,1768450232997,-500.0,0.0001273,2]
[401995025,1768450233007,-589.76747342,0.0001273,2]
[401995026,1768450233016,-500.0,0.0001273,2]
[401995027,1768450233025,-500.0,0.0001273,2]
[401995028,1768450233034,-500.0,0.0001273,2]
[401995029,1768450233043,-500.0,0.0001273,2]
[401995030,1768450233053,-2535.47518263,0.00012732,2]
[401995045,1768450238771,-10632.10688937,0.00012732,2]
[401995046,1768450238780,-300.0,0.00012819,2]
[401995047,1768450238789,-300.0,0.00012819,2]
[401995048,1768450238798,-300.0,0.00012819,2]
[401995049,1768450238808,-300.0,0.00012819,2]
[401995050,1768450238818,-300.0,0.00012819,2]
[401995051,1768450238827,-300.0,0.00012819,2]
[401995052,1768450238837,-300.0,0.00012819,2]
[401995053,1768450238846,-300.0,0.00012819,2]
[401995054,1768450238856,-300.0,0.00012819,2]
[401995055,1768450238866,-300.0,0.00012819,2]
[401995056,1768450238875,-300.0,0.00012819,2]
[401995057,1768450238885,-300.0,0.00012819,2]
[401995058,1768450238895,-300.0,0.00012819,2]
[401995059,1768450238904,-300.0,0.00012819,2]
[401995060,1768450238913,-300.0,0.00012819,2]
[401995061,1768450238922,-600.0,0.00012819,2]
[401995062,1768450238931,-4733.06442963,0.000129,2]
[401995063,1768450238942,-1360.21594772,0.000129,2]
[401995064,1768450238951,-399.9260377,0.00013272,2]
[401995065,1768450238960,-500.0,0.00013273,2]
[401995066,1768450238970,-503.93163445,0.00013273,2]
[401995067,1768450238979,-500.0,0.00013273,2]
[401995068,1768450238988,-500.0,0.00013273,2]
[401995069,1768450238998,-500.0,0.00013273,2]
[401995070,1768450239008,-500.0,0.00013273,2]
[401995071,1768450239018,-327.61217589,0.00013273,2]
[401995072,1768450239027,-259.23463494,0.00013273,2]
[401995073,1768450239037,-500.0,0.00013273,2]
[401995074,1768450239045,-500.0,0.00013273,2]
[401995075,1768450239054,-500.0,0.00013273,2]
[401995076,1768450239063,-387.19103224,0.00013273,2]
[401995077,1768450239072,-500.0,0.00013273,2]
[401995078,1768450239080,-500.0,0.00013273,2]
[401995079,1768450239089,-500.0,0.00013273,2]
[401995080,1768450239098,-500.0,0.00013273,2]
[401995081,1768450239108,-500.0,0.00013273,2]
[401995082,1768450239117,-500.0,0.00013273,2]
[401995083,1768450239126,-500.0,0.00013273,2]
[401995084,1768450239135,-501.23190199,0.00013273,2]
[401995085,1768450239144,-500.0,0.00013273,2]
[401995086,1768450239153,-500.0,0.00013273,2]
[401995087,1768450239163,-500.0,0.00013273,2]
[401995088,1768450239173,-500.0,0.00013273,2]
[401995089,1768450239182,-500.0,0.00013273,2]
[401995090,1768450239191,-501.45177339,0.00013273,2]
[401995091,1768450239200,-500.0,0.00013273,2]
[401995092,1768450239210,-500.0,0.00013273,2]
[401995093,1768450239219,-420.0,0.00013529,2]
[401995094,1768450239228,-500.0,0.00013698,2]
[401995095,1768450239237,-500.0,0.00013698,2]
[401995096,1768450239246,-500.0,0.00013698,2]
[401995097,1768450239254,-500.0,0.00013698,2]
[401995098,1768450239263,-500.0,0.00013698,2]
[401995099,1768450239272,-500.0,0.00013698,2]
[401995100,1768450239281,-500.0,0.00013698,2]
[401995101,1768450239289,-500.0,0.00013698,2]
[401995102,1768450239298,-500.0,0.00013698,2]
[401995103,1768450239307,-500.0,0.00013698,2]
[401995104,1768450239316,-500.0,0.00013698,2]
[401995105,1768450239327,-500.0,0.00013698,2]
[401995106,1768450239336,-500.0,0.00013698,2]
[401995107,1768450239344,-500.0,0.00013698,2]
[401995108,1768450239353,-500.0,0.00013698,2]
[401995109,1768450239362,-500.0,0.00013698,2]
[401995110,1768450239371,-500.0,0.00013698,2]
[401995111,1768450239380,-500.0,0.00013698,2]
[401995112,1768450239388,-500.0,0.00013698,2]
[401995113,1768450239397,-500.0,0.00013698,2]
[401995114,1768450239406,-500.0,0.00013698,2]
[401995115,1768450239416,-500.0,0.00013698,2]
[401995116,1768450239424,-500.0,0.00013698,2]
[401995117,1768450239433,-500.0,0.00013698,2]
[401995118,1768450239441,-500.0,0.00013698,2]
[401995119,1768450239450,-500.0,0.00013698,2]
[401995120,1768450239459,-500.0,0.00013698,2]
[401995121,1768450239468,-500.0,0.00013698,2]
[401995122,1768450239477,-500.0,0.00013698,2]
[401995123,1768450239486,-500.0,0.00013698,2]
[401995124,1768450239494,-500.0,0.00013698,2]
[401995125,1768450239503,-500.0,0.00013698,2]
[401995126,1768450239514,-2155.316631,0.00013699,2]
[401995127,1768450239525,-500.0,0.00013699,2]
[401995128,1768450239535,-500.0,0.00013699,2]
[401995129,1768450239544,-500.0,0.00013699,2]
[401995130,1768450239553,-500.43009045,0.00013699,2]
[401995131,1768450239562,-500.0,0.00013699,2]
[401995132,1768450239572,-500.0,0.00013699,2]
[401995133,1768450239581,-500.0,0.00013699,2]
[401995134,1768450239591,-500.0,0.00013699,2]
[401995135,1768450239601,-500.0,0.00013699,2]
[401995136,1768450239610,-500.0,0.00013699,2]
[401995137,1768450239619,-500.0,0.00013699,2]
[401995138,1768450239628,-500.0,0.00013699,2]
[401995139,1768450239637,-500.0,0.00013699,2]
[401995140,1768450239646,-500.0,0.00013699,2]
[401995141,1768450239655,-500.0,0.00013699,2]
[401995142,1768450239665,-500.0,0.00013699,2]
[401995143,1768450239674,-500.0,0.00013699,2]
[401995144,1768450239684,-500.0,0.00013699,2]
[401995145,1768450239693,-301.90781537,0.00013699,2]
[401995146,1768450239703,-371.29740831,0.00013699,2]
[401995147,1768450239713,-500.0,0.00013699,2]
[401995148,1768450239722,-500.0,0.00013699,2]
[401995149,1768450239731,-500.0,0.00013699,2]
[401995150,1768450239740,-500.0,0.00013699,2]
[401995151,1768450239749,-500.0,0.00013699,2]
[401995152,1768450239758,-500.0,0.00013699,2]
[401995153,1768450239767,-158.58453189,0.00013699,2]
[401995154,1768450239775,-414.0095491,0.00013699,2]
[401995155,1768450239784,-500.0,0.00013699,2]
[401995156,1768450239794,-500.0,0.00013699,2]
[401995157,1768450239803,-500.0,0.00013699,2]
[401995158,1768450239812,-506.4593379,0.00013699,2]
[401995159,1768450239822,-500.0,0.00013699,2]
[401995160,1768450239831,-500.0,0.00013699,2]
[401995161,1768450239840,-500.25020701,0.00013699,2]
[401995162,1768450239849,-163.96622254,0.00013699,2]
[401995163,1768450239859,-500.0,0.00013699,2]
[401995164,1768450239868,-500.0,0.00013699,2]
[401995165,1768450239878,-500.0,0.00013699,2]
[401995166,1768450240074,-195.7031747,0.00013699,2]
[401995167,1768450240084,-500.0,0.0001382,2]
[401995168,1768450240093,-500.0,0.0001382,2]
[401995169,1768450240102,-500.0,0.0001382,2]
[401995170,1768450240111,-500.0,0.0001382,2]
[401995171,1768450240121,-500.0,0.0001382,2]
[401995172,1768450240130,-1000.0,0.00013821,2]
[401995173,1768450240139,-1000.0,0.00013821,2]
[401995174,1768450240148,-666.08754188,0.00013821,2]
[401995175,1768450240157,-1000.0,0.00013821,2]
[401995176,1768450240167,-1000.0,0.00013821,2]
[401995177,1768450240176,-784.74191732,0.00013821,2]
[401995178,1768450240185,-398.68510635,0.00013821,2]
[401995179,1768450240194,-1000.0,0.00013821,2]
[401995180,1768450240203,-1000.0,0.00013821,2]
[401995181,1768450240213,-1000.0,0.00013821,2]
[401995182,1768450240222,-654.81140965,0.00013821,2]
[401995183,1768450240231,-1000.0,0.00013821,2]
[401995184,1768450240240,-1000.0,0.00013821,2]
[401995185,1768450240249,-1000.0,0.00013821,2]
[401995186,1768450240258,-1000.0,0.00013821,2]
[401995187,1768450240267,-500.0,0.00013821,2]
[401995188,1768450240276,-730.46949765,0.00013821,2]
[401995189,1768450240287,-500.0,0.00013821,2]
[401995191,1768450240295,-1000.0,0.00013821,2]
[401995192,1768450240304,-1000.0,0.00013821,2]
[401995193,1768450240314,-1000.0,0.00013821,2]
[401995194,1768450240323,-1000.0,0.00013821,2]
[401995195,1768450240333,-150.22349183,0.00013973,2]
[401995196,1768450240342,-503.0,0.00013999,2]
[401995198,1768450240351,-64317.25986599,0.00014,2]
[401995220,1768450241038,-235.78266717,0.00014,2]
[401995529,1768450243981,-20807.00520424,0.00012632,2]
[401995581,1768450246740,-27783.64559888,0.00012632,2]
[401995629,1768450523706,500.0,0.00027397,120]
[401995630,1768450831144,927.02460122,0.00027397,120]
[401995651,1768450927845,9027.0,0.00027397,120]
[401995652,1768450951891,165.0,0.0002515,120]
[401995653,1768450953176,165.0,0.00026408,120]
[401995655,1768451328007,155.0,5e-05,2]
[401995656,1768451385973,99999.9919,0.00027,120]
[401995657,1768451402375,171.67,5e-05,2]
[401995658,1768451402717,171.67,7e-05,2]
[401995659,1768451403003,171.67,9e-05,2]
[401995660,1768451424873,1010.04,0.00027397,120]
[401995661,1768451429606,600.0,0.0002739,120]
[401995690,1768451431713,-589.0,0.00011998,2]
[401995691,1768451431722,-278.02039964,0.00011998,2]
[401995692,1768451431731,-151.0,0.00012,2]
[401995694,1768451431740,-703.07503083,0.00012,2]
[401995695,1768451431749,-151.0,0.000121,2]
[401995696,1768451431759,-151.0,0.000121,2]
[401995697,1768451431769,-151.0,0.000122,2]
[401995699,1768451431777,-300.0,0.00012298,2]
[401995701,1768451431787,-300.0,0.00012298,2]
[401995702,1768451431796,-300.0,0.00012298,2]
[401995703,1768451431805,-29302.54659824,0.00012299,2]
[401995704,1768451431814,-500.0,0.00012299,2]
[401995705,1768451431823,-500.0,0.00012299,2]
[401995706,1768451431832,-500.0,0.00012299,2]
[401995707,1768451431841,-500.0,0.00012299,2]
[401995708,1768451431853,-500.0,0.00012299,2]
[401995709,1768451431862,-503.03877384,0.00012299,2]
[401995710,1768451431871,-265.54757295,0.00012299,2]
[401995711,1768451431880,-500.0,0.00012299,2]
[401995712,1768451431890,-262.00625085,0.00012299,2]
[401995713,1768451431899,-286.32752498,0.00012299,2]
[401995714,1768451431909,-151.0,0.000123,2]
[401995715,1768451431919,-151.0,0.000123,2]
[401995716,1768451431928,-151.0,0.000123,2]
[401995717,1768451431938,-500.0,0.00012328,2]
[401995718,1768451431947,-235.83998302,0.00012328,2]
[401995719,1768451431958,-574.79,0.00012329,2]
[401995720,1768451431968,-6054.02,0.00012329,2]
[401995721,1768451431977,-5045.02,0.00012329,2]
[401995722,1768451431986,-4204.18,0.00012329,2]